fUSD/lending_fUSD_20241123
["ID","MTS","AMOUNT","RATE_DAILY","PERIOD"]
[343074202,1732329033735,-3972.80401596,0.00069,2]
[343074203,1732329033746,-4258.23252317,0.00069,10]
[343074204,1732329033756,-3750.0,0.00069,120]
[343074205,1732329033767,-167.53,0.00069282,2]
[343074206,1732329033777,-3750.0,0.000695,120]
[343074207,1732329033787,-559.97,0.00069545,2]
[343074208,1732329033797,-364.627011,0.000699,120]
[343074209,1732329033807,-151.0,0.0007,120]
[343074210,1732329033818,-806.0,0.0007,100]
[343074211,1732329033828,-3750.0,0.0007,120]
[343074212,1732329033838,-281.59354092,0.0007,120]
[343074213,1732329033848,-2000.0,0.0007,120]
[343074214,1732329033858,-3750.0,0.00070063,120]
[343074215,1732329033868,-221.6637761,0.0007024,2]
[343074216,1732329033879,-806.0,0.000705,101]
[343074217,1732329033889,-3750.0,0.000705,120]
[343074218,1732329033901,-500.0,0.00070992,120]
[343074219,1732329033911,-1388.0,0.00071,102]
[343074220,1732329033921,-3750.0,0.00071,120]
[343074221,1732329033932,-162.89,0.00071041,120]
[343074222,1732329033942,-156.03,0.000712,72]
[343074223,1732329033952,-156.03,0.000712,72]
[343074224,1732329033963,-166.28,0.00071377,120]
[343074225,1732329033973,-500.0,0.00071498,120]
[343074226,1732329033983,-3750.0,0.000715,120]
[343074227,1732329033993,-3750.0,0.0007175,120]
[343074228,1732329034003,-559.97,0.00071809,2]
[343074229,1732329034015,-3750.0,0.00072,120]
[343074230,1732329034025,-500.0,0.00072,120]
[343074231,1732329034036,-188.64370384,0.00072035,120]
[343074232,1732329034046,-500.0,0.00072052,120]
[343074233,1732329034056,-200.0,0.000721,2]
[343074234,1732329034066,-200.0,0.00072386,120]
[343074235,1732329034076,-150.0,0.00072415,2]
[343074236,1732329034088,-3750.0,0.000725,120]
[343074237,1732329034103,-151.83,0.00072724,120]
[343074238,1732329034113,-7520.11914328,0.00072734,120]
[343074239,1732329034123,-766.4422995,0.00072872,120]
[343074240,1732329034135,-3750.0,0.00073,120]
[343074241,1732329034146,-157.56,0.00073059,120]
[343074242,1732329034158,-500.0,0.00073096,120]
[343074243,1732329034169,-500.0,0.00073112,120]
[343074244,1732329034180,-168.91,0.00073225,2]
[343074245,1732329034191,-3750.0,0.00073438,120]
[343074246,1732329034203,-3750.0,0.000735,120]
[343074247,1732329034213,-200.0,0.00073688,120]
[343074248,1732329034223,-1000.0,0.000738,14]
[343074249,1732329034233,-1000.0,0.000738,14]
[343074250,1732329034244,-367.0,0.00074,120]
[343074251,1732329034254,-3750.0,0.00074,120]
[343074252,1732329034264,-559.97,0.00074073,2]
[343074253,1732329034275,-500.0,0.00074172,120]
[343074254,1732329034286,-150.112311,0.00074498,120]
[343074255,1732329034297,-3750.0,0.000745,120]
[343074256,1732329034307,-50000.0,0.00074566,120]
[343074257,1732329034329,-505.812869,0.00074604,120]
[343074258,1732329034338,-170.06948319,0.00074692,120]
[343074259,1732329034348,-500.0,0.00074694,120]
[343074260,1732329034358,-160.0,0.00074792,120]
[343074261,1732329034369,-1000.0,0.000748,30]
[343074262,1732329034379,-229.0,0.000748,30]
[343074263,1732329034396,-363.0,0.000748,30]
[343074264,1732329034415,-151.83,0.0007499,120]
[343074265,1732329034429,-200.0,0.0007499,120]
[343074266,1732329034440,-3750.0,0.00075,120]
[343074267,1732329034453,-30022.5019866,0.00075,30]
[343074268,1732329034468,-155.0,0.00075055,60]
[343074269,1732329034481,-3750.0,0.00075125,120]
[343074270,1732329034496,-500.0,0.00075232,120]
[343074271,1732329034511,-872.0,0.0007542,120]
[343074272,1732329034524,-3750.0,0.000755,120]
[343074273,1732329034537,-168.56157202,0.000759,59]
[343074274,1732329034549,-3600.0,0.000759,27]
[343074275,1732329034560,-188.64370384,0.000759,120]
[343074276,1732329034573,-162.89,0.00075951,120]
[343074277,1732329034587,-151.83,0.0007599,120]
[343074278,1732329034599,-151.83,0.0007599,120]
[343074279,1732329034611,-151.83,0.0007599,120]
[343074280,1732329034624,-151.83,0.0007599,120]
[343074281,1732329034637,-151.83,0.0007599,120]
[343074282,1732329034653,-151.83,0.0007599,120]
[343074283,1732329034667,-30000.0,0.00075997,120]
[343074284,1732329034679,-5000.0,0.00075999,120]
[343074285,1732329034691,-90737.40354135,0.00076,120]
[343074286,1732329034723,-5622.03985906,0.00076,120]
[343074287,1732329034739,-2176.37284977,0.00076,120]
[343074288,1732329034756,-1947.2218158,0.00076,120]
[343074289,1732329034771,-2616.58799259,0.00076,120]
[343074290,1732329034785,-1301.36397506,0.00076,120]
[343074291,1732329034801,-950.26546194,0.00076,120]
[343074292,1732329034816,-1266.60175907,0.00076,120]
[343074293,1732329038114,-2500.0,0.000669,2]
[343074294,1732329038126,-153.0,0.00070623,60]
[343074295,1732329038137,-773.32,0.0007599,30]
[343074296,1732329038148,-1870.06235888,0.00076,120]
[343074297,1732329038164,-2911.13804618,0.00076,120]
[343074298,1732329038178,-2430.99538015,0.00076,120]
[343074299,1732329038191,-5615.95575483,0.00076,120]
[343074300,1732329038280,-2344.89384711,0.00076,120]
[343074302,1732329040001,-5517.91555915,0.00076,120]
[343074303,1732329040253,-8907.45688999,0.000669,2]
[343074312,1732329043778,-21854.02490768,0.000669,2]
[343074314,1732329043790,-5947.09108676,0.000669,2]
[343074315,1732329043802,-3678.60948918,0.000669,2]
[343074316,1732329043813,-5461.05958149,0.000669,2]
[343074317,1732329043845,-6179.96284856,0.000669,2]
[343074318,1732329043857,-17411.12635307,0.000669,2]
[343074319,1732329043868,-15040.51653266,0.000669,2]
[343074320,1732329043879,-1432.30532102,0.000669,2]
[343074325,1732329046092,-7761.0305,0.000669,2]
[343074326,1732329046104,-4565.04563354,0.000669,2]
[343074327,1732329046281,-1761.77085605,0.000669,2]
[343074328,1732329046291,-2960.81648426,0.0006807,15]
[343074329,1732329046300,-156.0,0.00070623,60]
[343074330,1732329046311,-5481.6707232,0.00075948,8]
[343074331,1732329046320,-14117.27946182,0.00076,120]
[343074332,1732329046332,-189790.13163606,0.00076,120]
[343074334,1732329049433,-209772.174852,0.00076,120]
[343074335,1732329049443,-151.0,0.00076,120]
[343074336,1732329049453,-151.0,0.00076,120]
[343074337,1732329049463,-151.0,0.00076,120]
[343074338,1732329049472,-164.636441,0.00076,120]
[343074339,1732329049481,-151.0,0.00076,120]
[343074340,1732329049491,-397.408892,0.00076,120]
[343074341,1732329049501,-151.0,0.00076,120]
[343074342,1732329049510,-151.0,0.00076,120]
[343074343,1732329049519,-397.408892,0.00076,120]
[343074344,1732329049529,-220.737463,0.00076,120]
[343074345,1732329049538,-220.737463,0.00076,120]
[343074346,1732329049547,-151.0,0.00076,120]
[343074347,1732329049556,-1383.350227,0.00076,120]
[343074348,1732329049565,-1383.350227,0.00076,120]
[343074349,1732329049574,-3750.0,0.00076,120]
[343074350,1732329049584,-151.0,0.00076,120]
[343074351,1732329049593,-215.564739,0.00076,120]
[343074352,1732329049603,-253.147386,0.00076,120]
[343074353,1732329049611,-4462.32428851,0.00076,120]
[343074354,1732329049620,-215.564739,0.00076,120]
[343074355,1732329049631,-174.922426,0.00076,120]
[343074356,1732329049757,-174.922426,0.00076,120]
[343074357,1732329049768,-151.0,0.00076,120]
[343074358,1732329049779,-255.675184,0.00076,120]
[343074359,1732329049788,-212.296047,0.00076,7]
[343074360,1732329049798,-255.675184,0.00076,120]
[343074361,1732329049808,-151.0,0.00076,120]
[343074362,1732329049817,-233.888835,0.00076,120]
[343074363,1732329049827,-212.11572,0.00076,120]
[343074364,1732329049837,-212.296047,0.00076,7]
[343074365,1732329049846,-233.888835,0.00076,120]
[343074366,1732329049856,-212.11572,0.00076,120]
[343074367,1732329049865,-151.0,0.00076,120]
[343074368,1732329049875,-950.017311,0.00076,120]
[343074369,1732329049884,-950.017311,0.00076,120]
[343074370,1732329049894,-151.0,0.00076,120]
[343074371,1732329049903,-282.54306,0.00076,120]
[343074372,1732329049913,-207.740457,0.00076,120]
[343074373,1732329049927,-348.282074,0.00076,120]
[343074374,1732329049937,-207.740457,0.00076,120]
[343074375,1732329049947,-348.282074,0.00076,120]
[343074376,1732329049958,-161.788874,0.00076,120]
[343074377,1732329049968,-500.0,0.00076293,120]
[343074378,1732329049978,-500.0,0.00076293,120]
[343074379,1732329049988,-500.0,0.00076293,120]
[343074380,1732329049998,-200.0,0.00076293,120]
[343074381,1732329050008,-559.97,0.00076337,2]
[343074382,1732329050018,-166.28,0.00076424,120]
[343074383,1732329050028,-3750.0,0.000765,120]
[343074384,1732329050038,-151.83,0.00076702,120]
[343074385,1732329050048,-503.63172226,0.00076712,120]
[343074386,1732329050058,-503.67960735,0.00076712,120]
[343074387,1732329050067,-507.71128486,0.00076712,120]
[343074388,1732329050077,-508.76762593,0.00076712,120]
[343074389,1732329050087,-599.14453062,0.00076712,120]
[343074390,1732329050099,-507.50948982,0.00076712,120]
[343074391,1732329050113,-500.0,0.00076712,120]
[343074392,1732329050123,-339.03592917,0.00076712,120]
[343074393,1732329050132,-500.0,0.00076712,120]
[343074394,1732329050142,-254.80466595,0.00076712,120]
[343074395,1732329050154,-498.73171459,0.00076712,120]
[343074396,1732329050167,-500.0,0.00076712,120]
[343074397,1732329050178,-526.15995422,0.00076712,120]
[343074398,1732329050188,-505.28319121,0.00076712,120]
[343074399,1732329050198,-507.25748325,0.00076712,120]
[343074400,1732329050208,-630.42222688,0.00076712,120]
[343074401,1732329050219,-508.67514788,0.00076712,120]
[343074402,1732329050230,-516.88,0.00076712,120]
[343074403,1732329050239,-500.0,0.00076712,120]
[343074404,1732329050249,-351.20019662,0.00076712,120]
[343074405,1732329050259,-516.50720068,0.00076712,120]
[343074406,1732329050268,-307.2310936,0.00076712,120]
[343074407,1732329050278,-500.0,0.00076712,120]
[343074408,1732329050289,-500.0,0.00076712,120]
[343074409,1732329050298,-500.0,0.00076712,120]
[343074410,1732329050308,-500.0,0.00076712,120]
[343074411,1732329050318,-500.0,0.00076712,120]
[343074412,1732329050328,-500.0,0.00076712,120]
[343074413,1732329050337,-500.0,0.00076712,120]
[343074414,1732329050347,-523.45297218,0.00076712,120]
[343074415,1732329050357,-333.41313774,0.00076712,120]
[343074416,1732329050366,-522.57796667,0.00076712,120]
[343074417,1732329050376,-500.0,0.00076712,120]
[343074418,1732329050386,-332.02763216,0.00076712,120]
[343074419,1732329050397,-500.0,0.00076712,120]
[343074420,1732329050407,-500.0,0.00076712,120]
[343074421,1732329050417,-500.0,0.00076712,120]
[343074422,1732329050427,-500.0,0.00076712,120]
[343074423,1732329050437,-500.0,0.00076712,120]
[343074424,1732329050446,-386.20871468,0.00076712,120]
[343074425,1732329050457,-502.47932676,0.00076712,120]
[343074426,1732329050467,-505.41420112,0.00076712,120]
[343074427,1732329050477,-522.59067137,0.00076712,120]
[343074428,1732329050486,-500.0,0.00076712,120]
[343074429,1732329050498,-623.97,0.00076712,120]
[343074430,1732329050507,-623.97,0.00076712,120]
[343074431,1732329050516,-623.97,0.00076712,120]
[343074432,1732329050526,-623.97,0.00076712,120]
[343074433,1732329050535,-623.97,0.00076712,120]
[343074434,1732329050545,-623.97,0.00076712,120]
[343074435,1732329050555,-623.97,0.00076712,120]
[343074436,1732329050565,-623.97,0.00076712,120]
[343074437,1732329050574,-500.0,0.00076712,120]
[343074438,1732329050584,-504.98320976,0.00076712,120]
[343074439,1732329050594,-500.0,0.00076712,120]
[343074440,1732329050604,-547.47375715,0.00076712,120]
[343074441,1732329050614,-507.87469152,0.00076712,120]
[343074442,1732329050624,-500.0,0.00076712,120]
[343074443,1732329050634,-238.70728782,0.00076712,120]
[343074444,1732329050643,-507.06716505,0.00076712,120]
[343074445,1732329050653,-508.5522063,0.00076712,120]
[343074446,1732329050662,-519.44660711,0.00076712,120]
[343074447,1732329050674,-862.26,0.00076712,120]
[343074448,1732329050684,-862.26,0.00076712,120]
[343074449,1732329050694,-862.26,0.00076712,120]
[343074450,1732329050703,-862.26,0.00076712,120]
[343074451,1732329050713,-862.26,0.00076712,120]
[343074452,1732329050723,-862.26,0.00076712,120]
[343074453,1732329050735,-862.26,0.00076712,120]
[343074454,1732329050746,-510.87261674,0.00076712,120]
[343074455,1732329050756,-862.26,0.00076712,120]
[343074456,1732329050766,-517.07649291,0.00076712,120]
[343074457,1732329050776,-532.48990697,0.00076712,120]
[343074458,1732329050786,-511.4106891,0.00076712,120]
[343074459,1732329050796,-500.0,0.00076712,120]
[343074460,1732329050806,-500.0,0.00076712,120]
[343074461,1732329050816,-202.39763263,0.00076712,120]
[343074462,1732329050827,-508.87115822,0.00076712,120]
[343074463,1732329050837,-506.09443825,0.00076712,120]
[343074464,1732329050847,-500.0,0.00076712,120]
[343074465,1732329050857,-505.43526675,0.00076712,120]
[343074466,1732329050867,-500.0,0.00076712,120]
[343074467,1732329050876,-500.0,0.00076712,120]
[343074468,1732329050886,-500.0,0.00076712,120]
[343074469,1732329050896,-500.0,0.00076712,120]
[343074470,1732329050906,-500.0,0.00076712,120]
[343074471,1732329050919,-500.0,0.00076712,120]
[343074472,1732329050929,-515.94860449,0.00076712,120]
[343074473,1732329050938,-505.41124368,0.00076712,120]
[343074474,1732329050948,-508.48121228,0.00076712,120]
[343074475,1732329050958,-506.80487738,0.00076712,120]
[343074476,1732329050968,-509.93134594,0.00076712,120]
[343074477,1732329050978,-504.63094151,0.00076712,120]
[343074478,1732329050987,-332.11052134,0.00076712,120]
[343074479,1732329050997,-300.4983008,0.00076712,120]
[343074480,1732329051006,-500.0,0.00076712,120]
[343074481,1732329051016,-500.0,0.00076712,120]
[343074482,1732329051026,-500.0,0.00076712,120]
[343074483,1732329051038,-500.0,0.00076712,120]
[343074484,1732329051047,-500.0,0.00076712,120]
[343074485,1732329051058,-500.0,0.00076712,120]
[343074486,1732329051068,-500.0,0.00076712,120]
[343074487,1732329051078,-500.0,0.00076712,120]
[343074488,1732329051088,-301.83054573,0.00076712,120]
[343074489,1732329051100,-521.30446135,0.00076712,120]
[343074490,1732329051110,-284.09608605,0.00076712,120]
[343074491,1732329051121,-689.72,0.00076712,120]
[343074492,1732329051131,-689.72,0.00076712,120]
[343074493,1732329051142,-689.72,0.00076712,120]
[343074494,1732329051152,-689.72,0.00076712,120]
[343074495,1732329051161,-689.72,0.00076712,120]
[343074496,1732329051173,-689.72,0.00076712,120]
[343074497,1732329051183,-689.72,0.00076712,120]
[343074498,1732329051193,-500.0,0.00076712,60]
[343074499,1732329051203,-500.0,0.00076712,30]
[343074500,1732329051213,-173.71148792,0.00076712,60]
[343074501,1732329051223,-500.0,0.00076712,30]
[343074502,1732329051232,-500.0,0.00076712,30]
[343074503,1732329051241,-500.0,0.00076712,30]
[343074504,1732329051251,-500.0,0.00076712,30]
[343074505,1732329051261,-500.0,0.00076712,30]
[343074506,1732329051271,-500.0,0.00076712,30]
[343074507,1732329051281,-420.38099863,0.00076712,120]
[343074508,1732329051291,-544.59672089,0.00076712,120]
[343074509,1732329051300,-500.0,0.00076712,120]
[343074510,1732329051310,-508.02782634,0.00076712,120]
[343074511,1732329051320,-500.0,0.00076712,120]
[343074512,1732329051333,-500.0,0.00076712,120]
[343074513,1732329051345,-500.0,0.00076712,120]
[343074514,1732329051356,-500.0,0.00076712,120]
[343074515,1732329051367,-500.0,0.00076712,120]
[343074516,1732329051376,-500.0,0.00076712,120]
[343074517,1732329051386,-500.0,0.00076712,120]
[343074518,1732329051396,-354.41504228,0.00076712,120]
[343074519,1732329051406,-493.15236525,0.00076712,120]
[343074520,1732329051418,-500.0,0.00076712,120]
[343074521,1732329051427,-508.69335809,0.00076712,120]
[343074522,1732329051437,-546.69205223,0.00076712,120]
[343074523,1732329051448,-500.0,0.00076712,120]
[343074524,1732329051458,-500.0,0.00076712,120]
[343074525,1732329051468,-299.88491939,0.00076712,120]
[343074526,1732329051477,-500.0,0.00076712,120]
[343074527,1732329051487,-447.94534656,0.00076712,120]
[343074528,1732329051496,-1743.87,0.00076712,120]
[343074529,1732329051505,-1743.87,0.00076712,120]
[343074530,1732329051514,-1743.87,0.00076712,120]
[343074531,1732329051523,-1743.87,0.00076712,120]
[343074532,1732329051533,-1743.87,0.00076712,120]
[343074533,1732329051542,-1743.87,0.00076712,120]
[343074534,1732329051551,-1743.87,0.00076712,120]
[343074535,1732329051561,-537.64002517,0.00076712,120]
[343074536,1732329051570,-500.0,0.00076712,120]
[343074537,1732329051579,-500.0,0.00076712,120]
[343074538,1732329051588,-500.0,0.00076712,120]
[343074539,1732329051597,-500.0,0.00076712,120]
[343074540,1732329051607,-500.0,0.00076712,120]
[343074541,1732329051616,-612.52879164,0.00076712,120]
[343074542,1732329051625,-539.7196932,0.00076712,120]
[343074543,1732329051634,-584.49909974,0.00076712,2]
[343074544,1732329051645,-1086.63189291,0.00076712,120]
[343074545,1732329051654,-500.0,0.00076712,120]
[343074546,1732329051664,-231.74160326,0.00076712,120]
[343074547,1732329051675,-500.0,0.00076712,120]
[343074548,1732329051685,-500.0,0.00076712,120]
[343074549,1732329051694,-500.0,0.00076712,120]
[343074550,1732329051704,-500.0,0.00076712,120]
[343074551,1732329051714,-500.0,0.00076712,120]
[343074552,1732329051723,-565.24576283,0.00076712,120]
[343074553,1732329051733,-500.0,0.00076712,120]
[343074554,1732329051743,-617.48935294,0.00076712,120]
[343074555,1732329051753,-500.0,0.00076712,120]
[343074556,1732329051762,-554.37089463,0.00076712,120]
[343074557,1732329051772,-500.0,0.00076712,120]
[343074558,1732329051782,-500.0,0.00076712,120]
[343074559,1732329051791,-536.46261759,0.00076712,120]
[343074560,1732329051801,-500.0,0.00076712,120]
[343074561,1732329051811,-500.0,0.00076712,120]
[343074562,1732329051822,-512.51650931,0.00076712,120]
[343074563,1732329051831,-178.09649829,0.00076712,120]
[343074564,1732329051841,-500.0,0.00076712,120]
[343074565,1732329051851,-500.0,0.00076712,120]
[343074566,1732329051861,-500.0,0.00076712,120]
[343074567,1732329051871,-506.6861035,0.00076712,120]
[343074568,1732329051881,-500.0,0.00076712,120]
[343074569,1732329051890,-500.0,0.00076712,120]
[343074570,1732329051900,-500.0,0.00076712,120]
[343074571,1732329051909,-500.0,0.00076712,120]
[343074572,1732329051921,-477.23742347,0.00076712,120]
[343074573,1732329051931,-500.0,0.00076712,120]
[343074574,1732329051941,-1000.0,0.00076712,120]
[343074575,1732329051951,-1000.0,0.00076712,120]
[343074576,1732329051961,-1000.0,0.00076712,120]
[343074577,1732329051971,-1000.0,0.00076712,120]
[343074578,1732329051982,-689.16309643,0.00076712,120]
[343074579,1732329051992,-500.0,0.00076712,120]
[343074580,1732329052002,-500.0,0.00076712,120]
[343074581,1732329052012,-500.0,0.00076712,120]
[343074582,1732329052021,-500.0,0.00076712,120]
[343074583,1732329052031,-500.0,0.00076712,120]
[343074584,1732329052040,-500.0,0.00076712,120]
[343074585,1732329052050,-500.0,0.00076712,120]
[343074586,1732329052060,-500.0,0.00076712,120]
[343074587,1732329052070,-500.0,0.00076712,120]
[343074588,1732329052079,-500.0,0.00076712,120]
[343074589,1732329052089,-500.0,0.00076712,120]
[343074590,1732329052101,-500.0,0.00076712,120]
[343074591,1732329052114,-500.0,0.00076712,120]
[343074592,1732329052124,-500.0,0.00076712,120]
[343074593,1732329052134,-500.0,0.00076712,120]
[343074594,1732329052146,-521.65,0.00076712,120]
[343074595,1732329052156,-500.0,0.00076712,120]
[343074596,1732329052215,-500.0,0.00076712,120]
[343074597,1732329052225,-500.0,0.00076712,120]
[343074598,1732329052235,-500.0,0.00076712,120]
[343074599,1732329052245,-500.0,0.00076712,120]
[343074600,1732329052255,-500.0,0.00076712,120]
[343074601,1732329052264,-500.0,0.00076712,120]
[343074602,1732329052273,-500.0,0.00076712,120]
[343074603,1732329052282,-500.0,0.00076712,120]
[343074604,1732329052291,-220.52268615,0.00076712,120]
[343074605,1732329052299,-564.1231248,0.00076712,120]
[343074606,1732329052308,-500.0,0.00076712,120]
[343074607,1732329052317,-500.0,0.00076712,120]
[343074608,1732329052326,-500.0,0.00076712,120]
[343074609,1732329052335,-500.0,0.00076712,120]
[343074610,1732329052343,-500.0,0.00076712,120]
[343074611,1732329052352,-500.0,0.00076712,120]
[343074612,1732329052361,-500.0,0.00076712,120]
[343074613,1732329052370,-500.0,0.00076712,120]
[343074614,1732329052380,-533.98568794,0.00076712,120]
[343074615,1732329052389,-540.14426928,0.00076712,120]
[343074616,1732329052398,-500.0,0.00076712,120]
[343074617,1732329052407,-500.0,0.00076712,120]
[343074618,1732329052415,-500.0,0.00076712,120]
[343074619,1732329052426,-500.0,0.00076712,120]
[343074620,1732329052435,-500.0,0.00076712,120]
[343074621,1732329052444,-500.0,0.00076712,120]
[343074622,1732329052453,-500.0,0.00076712,120]
[343074623,1732329052462,-500.0,0.00076712,120]
[343074624,1732329052472,-498.84356487,0.00076712,120]
[343074625,1732329052481,-437.82676308,0.00076712,120]
[343074626,1732329052490,-500.0,0.00076712,120]
[343074627,1732329052500,-616.44956119,0.00076712,120]
[343074628,1732329052510,-500.0,0.00076712,120]
[343074629,1732329052519,-558.97298507,0.00076712,120]
[343074630,1732329052529,-500.0,0.00076712,120]
[343074631,1732329052539,-500.0,0.00076712,120]
[343074632,1732329052548,-485.40999141,0.00076712,120]
[343074633,1732329052558,-1749.83,0.00076712,120]
[343074634,1732329052567,-500.0,0.00076712,120]
[343074635,1732329052576,-1749.83,0.00076712,120]
[343074636,1732329052586,-1749.83,0.00076712,120]
[343074637,1732329052595,-1749.83,0.00076712,120]
[343074638,1732329052605,-1749.83,0.00076712,120]
[343074639,1732329052614,-1749.83,0.00076712,120]
[343074640,1732329052623,-1749.83,0.00076712,120]
[343074641,1732329052633,-500.0,0.00076712,120]
[343074642,1732329052643,-560.69299122,0.00076712,120]
[343074643,1732329052653,-259.11766851,0.00076712,120]
[343074644,1732329052662,-500.0,0.00076712,120]
[343074645,1732329052673,-500.0,0.00076712,120]
[343074646,1732329052683,-500.0,0.00076712,120]
[343074647,1732329052693,-500.0,0.00076712,120]
[343074648,1732329052703,-500.0,0.00076712,120]
[343074649,1732329052713,-500.0,0.00076712,120]
[343074650,1732329052722,-500.0,0.00076712,120]
[343074651,1732329052732,-500.0,0.00076712,120]
[343074652,1732329052741,-500.0,0.00076712,120]
[343074653,1732329052750,-500.0,0.00076712,120]
[343074654,1732329052759,-500.0,0.00076712,120]
[343074655,1732329052768,-500.0,0.00076712,120]
[343074656,1732329052778,-500.0,0.00076712,120]
[343074657,1732329052787,-500.0,0.00076712,120]
[343074658,1732329052796,-500.0,0.00076712,120]
[343074659,1732329052806,-500.0,0.00076712,120]
[343074660,1732329052815,-500.0,0.00076712,120]
[343074661,1732329052825,-500.0,0.00076712,120]
[343074662,1732329052834,-500.0,0.00076712,120]
[343074663,1732329052844,-500.0,0.00076712,120]
[343074664,1732329052853,-468.6,0.00076712,120]
[343074665,1732329052863,-543.97544431,0.00076712,120]
[343074666,1732329052872,-500.0,0.00076712,120]
[343074667,1732329052882,-500.0,0.00076712,120]
[343074668,1732329052892,-500.0,0.00076712,120]
[343074669,1732329052903,-329.52170347,0.00076712,120]
[343074670,1732329052913,-500.0,0.00076712,120]
[343074671,1732329052924,-500.0,0.00076712,120]
[343074672,1732329052934,-500.0,0.00076712,120]
[343074673,1732329052944,-162.79550409,0.00076712,120]
[343074674,1732329052954,-568.45534252,0.00076712,120]
[343074675,1732329052964,-500.0,0.00076712,120]
[343074676,1732329052974,-155.51816811,0.00076712,120]
[343074677,1732329052984,-500.0,0.00076712,2]
[343074678,1732329052994,-268.35045898,0.00076712,2]
[343074679,1732329053004,-500.0,0.00076712,120]
[343074680,1732329053014,-166.7,0.00076712,120]
[343074681,1732329053024,-500.0,0.00076712,120]
[343074682,1732329053033,-500.0,0.00076712,120]
[343074683,1732329053043,-500.0,0.00076712,120]
[343074684,1732329053053,-500.0,0.00076712,120]
[343074685,1732329053063,-500.0,0.00076712,120]
[343074686,1732329053073,-500.0,0.00076712,120]
[343074687,1732329053082,-500.0,0.00076712,120]
[343074688,1732329053092,-500.0,0.00076712,120]
[343074689,1732329053106,-500.0,0.00076712,120]
[343074690,1732329053115,-630.58,0.00076712,120]
[343074691,1732329053125,-524.4738967,0.00076712,120]
[343074692,1732329053135,-537.37656759,0.00076712,120]
[343074693,1732329053145,-500.0,0.00076712,120]
[343074694,1732329053155,-500.0,0.00076712,120]
[343074695,1732329053164,-500.0,0.00076712,120]
[343074696,1732329053176,-500.0,0.00076712,120]
[343074697,1732329053186,-500.0,0.00076712,120]
[343074698,1732329053196,-500.0,0.00076712,120]
[343074699,1732329053206,-500.0,0.00076712,120]
[343074700,1732329053215,-500.0,0.00076712,120]
[343074701,1732329053225,-500.0,0.00076712,120]
[343074702,1732329053234,-448.70614646,0.00076712,120]
[343074703,1732329053244,-383.44557279,0.00076712,120]
[343074704,1732329053253,-3750.0,0.00076812,120]
[343074705,1732329053263,-3043.53,0.00077,120]
[343074706,1732329053272,-1000.0,0.00077248,120]
[343074707,1732329053282,-500.0,0.00077297,120]
[343074708,1732329053291,-302.39,0.00077356,60]
[343074709,1732329053300,-500.0,0.00077368,120]
[343074710,1732329053309,-689.72,0.00077368,120]
[343074711,1732329053318,-500.0,0.00077368,30]
[343074712,1732329053327,-1743.87,0.00077368,120]
[343074713,1732329053336,-1749.83,0.00077368,120]
[343074714,1732329053345,-5056.07641772,0.00077369,120]
[343074715,1732329053355,-200.0,0.00077526,120]
[343074716,1732329053364,-273.26,0.00077538,120]